fUSD/lending_fUSD_20240329
["ID","MTS","AMOUNT","RATE_DAILY","PERIOD"]
[320939743,1711717887121,-2381.03,0.00055342,120]
[320939744,1711717887130,-1445.92,0.00055342,120]
[320939745,1711717887139,-261.36882454,0.00055342,120]
[320939746,1711717887148,-773.51,0.00055342,120]
[320939747,1711717887158,-618.06,0.00055342,120]
[320939748,1711717887167,-1006.88,0.00055342,120]
[320939749,1711717887177,-892.02,0.00055342,120]
[320939750,1711717887187,-1871.96,0.00055342,120]
[320939751,1711717887196,-576.09,0.00055342,120]
[320939752,1711717887207,-1084.24,0.00055342,120]
[320939753,1711717887217,-500.0,0.00055342,120]
[320939754,1711717887227,-1017.92,0.00055342,120]
[320939755,1711717887237,-1346.91,0.00055342,120]
[320939756,1711717887247,-7918.66,0.00055342,120]
[320939757,1711717887257,-1251.92,0.00055342,120]
[320939758,1711717887267,-759.82,0.00055342,120]
[320939759,1711717887277,-567.98,0.00055342,120]
[320939760,1711717887288,-833.99,0.00055342,120]
[320939761,1711717887298,-613.74,0.00055342,120]
[320939762,1711717887307,-629.65,0.00055342,120]
[320939763,1711717887317,-659.77,0.00055342,120]
[320939764,1711717887327,-753.42,0.00055342,120]
[320939765,1711717887344,-1665.88,0.00055342,120]
[320939766,1711717887353,-1013.23,0.00055342,120]
[320939767,1711717887363,-970.01,0.00055342,120]
[320939768,1711717887373,-885.14,0.00055342,21]
[320939769,1711717887382,-552.18,0.00055342,120]
[320939770,1711717887392,-542.16,0.00055342,120]
[320939771,1711717887402,-885.51,0.00055342,120]
[320939772,1711717887411,-1173.66,0.00055342,120]
[320939773,1711717887421,-917.94,0.00055342,120]
[320939774,1711717887431,-553.85,0.00055342,120]
[320939775,1711717887440,-1874.35,0.00055342,120]
[320939776,1711717887449,-623.83,0.00055342,120]
[320939777,1711717887459,-1018.16,0.00055342,120]
[320939778,1711717887468,-630.06,0.00055342,120]
[320939779,1711717887480,-546.14,0.00055342,120]
[320939780,1711717887490,-2627.15,0.00055342,120]
[320939781,1711717887499,-568.90933747,0.00055342,120]
[320939782,1711717887509,-1014.49,0.00055342,120]
[320939783,1711717887518,-1300.2,0.00055342,120]
[320939784,1711717887528,-1025.95,0.00055342,120]
[320939785,1711717887537,-984.89,0.00055342,120]
[320939786,1711717887547,-1789.86,0.00055342,120]
[320939787,1711717887557,-506.84,0.00055342,120]
[320939788,1711717887567,-840.09,0.00055342,120]
[320939789,1711717887579,-678.1,0.00055342,120]
[320939790,1711717887590,-577.48,0.00055342,120]
[320939791,1711717887599,-505.19,0.00055342,120]
[320939792,1711717887609,-742.6,0.00055342,120]
[320939793,1711717887618,-732.01,0.00055342,120]
[320939794,1711717887627,-555.83,0.00055342,120]
[320939795,1711717887636,-534.07,0.00055342,120]
[320939796,1711717887645,-1115.2,0.00055342,120]
[320939797,1711717887654,-1065.99,0.00055342,120]
[320939798,1711717887666,-549.59,0.00055342,120]
[320939799,1711717887677,-617.87,0.00055342,120]
[320939800,1711717887688,-2105.1,0.00055342,120]
[320939801,1711717887697,-500.0,0.00055342,120]
[320939802,1711717887709,-693.07,0.00055342,120]
[320939803,1711717887718,-544.66,0.00055342,120]
[320939804,1711717887727,-967.17,0.00055342,120]
[320939805,1711717887737,-573.1,0.00055342,120]
[320939806,1711717887746,-720.75,0.00055342,120]
[320939807,1711717887757,-556.26,0.00055342,120]
[320939808,1711717887766,-1304.35,0.00055342,120]
[320939809,1711717887776,-1140.14,0.00055342,120]
[320939810,1711717887786,-305.56,0.0005536,2]
[320939811,1711717887796,-377.0,0.00055363,30]
[320939812,1711717887806,-305.0,0.00055363,30]
[320939813,1711717887815,-999.6,0.000555,2]
[320939814,1711717887825,-1748.2533011,0.00055616,120]
[320939815,1711717887837,-151.0,0.00055616,120]
[320939816,1711717887846,-779.06135814,0.00055616,120]
[320939817,1711717887855,-1080.7252038,0.00055616,120]
[320939818,1711717887865,-5520.01815644,0.00055616,120]
[320939819,1711717887876,-1991.33130243,0.00055616,120]
[320939820,1711717887886,-1398.85522738,0.00055616,120]
[320939821,1711717887896,-702.76422079,0.00055616,120]
[320939822,1711717887905,-2247.7009314,0.00055616,120]
[320939823,1711717887915,-2304.59680137,0.00055616,120]
[320939824,1711717887924,-837.65511154,0.00055616,120]
[320939825,1711717887933,-4549.0762,0.00055616,120]
[320939826,1711717887943,-1038.40308456,0.00055616,120]
[320939827,1711717887952,-869.75920491,0.00055616,120]
[320939828,1711717887961,-929.32082649,0.00055616,120]
[320939829,1711717887970,-523.19470359,0.00055616,120]
[320939830,1711717887979,-775.88661028,0.00055616,120]
[320939831,1711717887988,-2120.29208916,0.00055616,120]
[320939832,1711717887997,-848.89802583,0.00055616,120]
[320939833,1711717888006,-12375.6719,0.00055616,120]
[320939834,1711717888015,-2381.15345564,0.00055616,120]
[320939835,1711717888024,-1445.95018406,0.00055616,120]
[320939836,1711717888033,-773.60504427,0.00055616,120]
[320939837,1711717888043,-618.14072584,0.00055616,120]
[320939838,1711717888052,-1007.08696659,0.00055616,120]
[320939839,1711717888061,-892.19733252,0.00055616,120]
[320939840,1711717888071,-1872.08821543,0.00055616,120]
[320939841,1711717888081,-576.11603874,0.00055616,120]
[320939842,1711717888091,-1084.41105948,0.00055616,120]
[320939843,1711717888100,-379.15083594,0.00055616,120]
[320939844,1711717888109,-1018.02565805,0.00055616,120]
[320939845,1711717888119,-1347.03697014,0.00055616,120]
[320939846,1711717888128,-7918.81254261,0.00055616,120]
[320939847,1711717888138,-1252.11831073,0.00055616,120]
[320939848,1711717888147,-759.83011687,0.00055616,120]
[320939849,1711717888158,-568.1565593,0.00055616,120]
[320939850,1711717888167,-834.15768863,0.00055616,120]
[320939851,1711717888177,-613.79615915,0.00055616,120]
[320939852,1711717888186,-629.79847607,0.00055616,120]
[320939853,1711717888196,-659.89816276,0.00055616,120]
[320939854,1711717888206,-753.55200984,0.00055616,120]
[320939855,1711717888216,-1666.01631426,0.00055616,120]
[320939856,1711717888225,-1013.41296464,0.00055616,120]
[320939857,1711717888235,-970.20039729,0.00055616,120]
[320939858,1711717888244,-885.30253816,0.00055616,21]
[320939859,1711717888253,-552.34026478,0.00055616,120]
[320939860,1711717888262,-542.16885906,0.00055616,120]
[320939861,1711717888271,-885.73572039,0.00055616,120]
[320939862,1711717888281,-1173.66,0.00055616,120]
[320939863,1711717888290,-918.16,0.00055616,120]
[320939864,1711717888299,-553.87680229,0.00055616,120]
[320939865,1711717888308,-1874.37642027,0.00055616,120]
[320939866,1711717888317,-624.06722408,0.00055616,120]
[320939867,1711717888326,-1018.30693231,0.00055616,120]
[320939868,1711717888437,-630.09650551,0.00055616,120]
[320939869,1711717888447,-546.25114077,0.00055616,120]
[320939870,1711717888457,-2627.27898805,0.00055616,120]
[320939871,1711717888468,-1014.53,0.00055616,120]
[320939872,1711717888478,-1300.28,0.00055616,120]
[320939873,1711717888489,-1026.08717071,0.00055616,120]
[320939874,1711717888498,-985.12327621,0.00055616,120]
[320939875,1711717888507,-1790.05546739,0.00055616,120]
[320939876,1711717888517,-506.92511082,0.00055616,120]
[320939877,1711717888526,-840.22203117,0.00055616,120]
[320939878,1711717888536,-678.23564585,0.00055616,120]
[320939879,1711717888545,-577.51223871,0.00055616,120]
[320939880,1711717888555,-505.4,0.00055616,120]
[320939881,1711717888565,-742.74589903,0.00055616,120]
[320939882,1711717888575,-732.08452953,0.00055616,120]
[320939883,1711717888585,-555.92,0.00055616,120]
[320939884,1711717888594,-534.08911274,0.00055616,120]
[320939885,1711717888603,-1115.40642246,0.00055616,120]
[320939886,1711717888613,-1066.03,0.00055616,120]
[320939887,1711717888622,-549.79193344,0.00055616,120]
[320939888,1711717888631,-618.04260479,0.00055616,120]
[320939889,1711717888642,-2105.22760939,0.00055616,120]
[320939890,1711717888651,-500.0,0.00055616,120]
[320939891,1711717888660,-693.13591681,0.00055616,120]
[320939892,1711717888670,-544.66,0.00055616,120]
[320939893,1711717888683,-967.26913774,0.00055616,120]
[320939894,1711717888692,-573.29,0.00055616,120]
[320939895,1711717888702,-720.76679435,0.00055616,120]
[320939896,1711717888711,-556.4855176,0.00055616,120]
[320939897,1711717888721,-1304.51310127,0.00055616,120]
[320939898,1711717888732,-1140.37638996,0.00055616,120]
[320939899,1711717888742,-305.56,0.0005562,2]
[320939900,1711717888751,-200.0,0.00055818,30]
[320939901,1711717888763,-258.4,0.00055836,120]
[320939902,1711717888774,-1228.11,0.0005589,120]
[320939903,1711717888783,-500.0,0.0005589,120]
[320939904,1711717888793,-377.0,0.00055928,30]
[320939905,1711717888804,-305.0,0.00055928,30]
[320939906,1711717888814,-1072.53604421,0.00056,120]
[320939907,1711717888824,-152.65,0.000561,8]
[320939908,1711717888836,-152.65,0.000561,8]
[320939909,1711717888845,-152.65,0.000561,8]
[320939910,1711717888855,-152.65,0.000561,8]
[320939911,1711717888865,-152.65,0.000561,8]
[320939912,1711717888874,-152.65,0.000561,8]
[320939913,1711717888884,-152.65,0.000561,8]
[320939914,1711717888893,-152.65,0.000561,8]
[320939915,1711717888903,-152.65,0.000561,8]
[320939916,1711717888913,-152.65,0.000561,8]
[320939917,1711717888923,-152.65,0.000561,8]
[320939918,1711717888932,-3526.06,0.000561,8]
[320939919,1711717888941,-3526.06,0.000561,8]
[320939920,1711717888951,-3526.06,0.000561,8]
[320939921,1711717888961,-3526.06,0.000561,8]
[320939922,1711717888970,-3526.06,0.000561,8]
[320939923,1711717888980,-3526.06,0.000561,8]
[320939924,1711717888989,-3526.06,0.000561,8]
[320939925,1711717888998,-3526.06,0.000561,8]
[320939926,1711717889008,-3526.06,0.000561,8]
[320939927,1711717889017,-3526.06,0.000561,8]
[320939928,1711717889027,-3526.06,0.000561,8]
[320939929,1711717889036,-3526.06,0.000561,8]
[320939930,1711717889045,-3526.06,0.000561,8]
[320939931,1711717889055,-3526.06,0.000561,8]
[320939932,1711717889064,-3526.06,0.000561,8]
[320939933,1711717889073,-3526.06,0.000561,8]
[320939934,1711717889082,-3526.06,0.000561,8]
[320939935,1711717889091,-3526.06,0.000561,8]
[320939936,1711717889100,-3526.06,0.000561,8]
[320939937,1711717889110,-3526.06,0.000561,8]
[320939938,1711717889119,-819.73,0.00056164,120]
[320939939,1711717889129,-819.73,0.00056164,120]
[320939940,1711717889138,-819.73,0.00056164,120]
[320939941,1711717889147,-819.73,0.00056164,120]
[320939942,1711717889156,-819.73,0.00056164,120]
[320939943,1711717889165,-819.73,0.00056164,120]
[320939944,1711717889174,-819.73,0.00056164,120]
[320939945,1711717889183,-819.73,0.00056164,120]
[320939946,1711717889192,-819.73,0.00056164,120]
[320939947,1711717889201,-819.73,0.00056164,120]
[320939948,1711717889210,-819.73,0.00056164,120]
[320939949,1711717889219,-819.73,0.00056164,120]
[320939950,1711717889228,-819.73,0.00056164,120]
[320939951,1711717889237,-819.73,0.00056164,120]
[320939952,1711717889246,-819.73,0.00056164,120]
[320939953,1711717889255,-819.73,0.00056164,120]
[320939954,1711717889264,-819.73,0.00056164,120]
[320939955,1711717889273,-819.73,0.00056164,120]
[320939956,1711717889282,-819.73,0.00056164,120]
[320939957,1711717889291,-819.73,0.00056164,120]
[320939958,1711717889300,-819.73,0.00056164,120]
[320939959,1711717889309,-819.73,0.00056164,120]
[320939960,1711717889318,-819.73,0.00056164,120]
[320939961,1711717889327,-819.93210723,0.00056164,120]
[320939962,1711717889338,-500.0,0.00056164,120]
[320939963,1711717889346,-431.19340125,0.000562,120]
[320939964,1711717889355,-1858.0,0.000562,120]
[320939965,1711717889364,-151.0,0.00056301,120]
[320939966,1711717889373,-500.0,0.00056438,120]
[320939967,1711717889382,-258.4,0.00056438,120]
[320939968,1711717889391,-377.0,0.00056493,30]
[320939969,1711717889400,-218.04132133,0.00056493,30]
[320939970,1711717889410,-558.17109976,0.00056493,30]
[320939971,1711717889418,-305.0,0.00056493,30]
[320939972,1711717889427,-547.30161099,0.00056493,30]
[320939973,1711717889438,-999.6,0.000565,2]
[320939974,1711717889447,-960.18,0.00056517,120]
[320939975,1711717889456,-152.074164,0.000567,120]
[320939976,1711717889466,-533.89085863,0.000567,2]
[320939977,1711717889476,-1228.11,0.00056712,120]
[320939978,1711717889485,-464.59327398,0.00056712,120]
[320939979,1711717889494,-410.981688,0.000568,30]
[320939980,1711717889503,-999.6,0.000568,2]
[320939981,1711717889513,-305.56,0.0005682,2]
[320939982,1711717889522,-224.25533439,0.0005689,120]
[320939983,1711717889532,-1000.0,0.00056986,120]
[320939984,1711717889541,-200.0,0.00056987,2]
[320939985,1711717889550,-162.64,0.00057,30]
[320939986,1711717889559,-297.57,0.00057,30]
[320939987,1711717889569,-1056.47,0.00057016,2]
[320939988,1711717889578,-2223.62731424,0.00057024,120]
[320939989,1711717889589,-1392.62580325,0.00057024,120]
[320939990,1711717889599,-566.66777425,0.00057024,120]
[320939991,1711717889608,-1318.19005954,0.00057024,120]
[320939992,1711717889617,-258.4,0.00057041,120]
[320939993,1711717889627,-377.0,0.00057058,30]
[320939994,1711717889636,-305.0,0.00057058,30]
[320939995,1711717889646,-305.56,0.0005708,2]
[320939996,1711717889654,-347.77,0.00057205,120]
[320939997,1711717889666,-1000.0,0.0005726,120]
[320939998,1711717889676,-500.0,0.00057279,34]
[320939999,1711717889685,-2223.62731424,0.00057522,120]
[320940000,1711717889695,-1392.62580325,0.00057522,120]
[320940001,1711717889706,-566.66777425,0.00057522,120]
[320940002,1711717889715,-1318.19005954,0.00057522,120]
[320940003,1711717889724,-666.0,0.00057534,120]
[320940004,1711717889734,-1000.0,0.00057534,120]
[320940005,1711717889743,-1228.11,0.00057534,120]
[320940006,1711717889754,-151.0,0.00057562,120]
[320940007,1711717889763,-377.0,0.00057623,30]
[320940008,1711717889772,-305.0,0.00057623,30]
[320940009,1711717889781,-258.4,0.00057644,120]
[320940010,1711717889791,-999.6,0.000578,2]
[320940011,1711717889799,-1000.0,0.00057808,120]
[320940012,1711717889809,-200.0,0.00057987,2]
[320940013,1711717889818,-4882.94350189,0.0005799,30]
[320940014,1711717889827,-2223.62731424,0.00058021,120]
[320940015,1711717889838,-1392.62580325,0.00058021,120]
[320940016,1711717889849,-566.66777425,0.00058021,120]
[320940017,1711717889858,-1318.19005954,0.00058021,120]
[320940018,1711717889867,-1000.0,0.00058082,120]
[320940019,1711717889876,-999.6,0.000581,2]
[320940020,1711717889885,-377.0,0.00058188,30]
[320940021,1711717889894,-305.0,0.00058188,30]
[320940022,1711717889903,-258.4,0.00058247,120]
[320940023,1711717889912,-305.56,0.0005828,2]
[320940024,1711717889922,-500.0,0.00058356,120]
[320940025,1711717889931,-500.0,0.00058356,120]
[320940026,1711717889940,-500.0,0.00058356,120]
[320940027,1711717889948,-500.0,0.00058356,120]
[320940028,1711717889958,-500.0,0.00058356,120]
[320940029,1711717889967,-500.0,0.00058356,120]
[320940030,1711717889976,-500.0,0.00058356,120]
[320940031,1711717889985,-361.05348029,0.00058356,120]
[320940032,1711717889994,-1000.0,0.00058356,120]
[320940033,1711717890003,-1228.11,0.00058356,120]
[320940034,1711717890013,-2226.0,0.00058403,117]
[320940035,1711717890023,-2223.62731424,0.0005852,120]
[320940036,1711717890032,-1392.62580325,0.0005852,120]
[320940037,1711717890042,-566.66777425,0.0005852,120]
[320940038,1711717890137,-1318.19005954,0.0005852,120]
[320940039,1711717890155,-472.345206,0.0005854,2]
[320940040,1711717890164,-1000.0,0.0005863,120]
[320940041,1711717890173,-23890.95055014,0.0005874,15]
[320940042,1711717890182,-151.0,0.00058822,120]
[320940043,1711717890191,-258.4,0.00058849,120]
[320940044,1711717890200,-196.37226732,0.000589,120]
[320940045,1711717890210,-1000.0,0.00058904,120]
[320940046,1711717890219,-200.0,0.00058987,2]
[320940047,1711717890228,-281.92117151,0.00059,120]
[320940048,1711717890237,-59441.19513101,0.00059,14]
[320940049,1711717890247,-2223.62731424,0.00059019,120]
[320940050,1711717890256,-1392.62580325,0.00059019,120]
[320940051,1711717890266,-566.66777425,0.00059019,120]
[320940052,1711717890274,-1318.19005954,0.00059019,120]
[320940053,1711717890284,-568.10644683,0.0005909,2]
[320940054,1711717890293,-999.6,0.000591,2]
[320940055,1711717890302,-1000.0,0.00059178,120]
[320940056,1711717890311,-1228.11,0.00059178,120]
[320940057,1711717890320,-1056.47,0.00059279,2]
[320940058,1711717890329,-2593.39,0.00059303,120]
[320940059,1711717890339,-999.6,0.000594,2]
[320940060,1711717890348,-1000.0,0.00059452,120]
[320940061,1711717890357,-258.4,0.00059452,120]
[320940062,1711717890366,-208.71666538,0.0005949,120]
[320940063,1711717890376,-2223.62731424,0.00059517,120]
[320940064,1711717890386,-1392.62580325,0.00059517,120]
[320940065,1711717890396,-566.66777425,0.00059517,120]
[320940066,1711717890405,-1318.19005954,0.00059517,120]
[320940067,1711717890415,-533.89085863,0.000596,2]
[320940068,1711717890424,-200.0,0.00059677,120]
[320940069,1711717890434,-305.56,0.0005974,2]
[320940070,1711717890443,-1313.15,0.000598,45]
[320940071,1711717890452,-150.0,0.00059939,120]
[320940072,1711717890462,-150.0,0.00059939,120]
[320940073,1711717890472,-150.0,0.00059939,120]
[320940074,1711717890482,-151.86884821,0.00059939,120]
[320940075,1711717890491,-151.725298,0.00059939,120]
[320940076,1711717890501,-150.0,0.00059939,120]
[320940077,1711717890511,-347.77,0.00059945,120]
[320940078,1711717890521,-179.12658074,0.0005998,120]
[320940079,1711717890530,-40839.49910892,0.0005998,30]
[320940080,1711717890539,-200.0,0.00059987,2]
[320940081,1711717890549,-1228.11,0.00059999,120]
[320940082,1711717890558,-3198.00185383,0.0006,90]
[320940083,1711717890568,-8902.02758958,0.0006,120]
[320940084,1711717890577,-23107.5896495,0.0006,120]
[320940085,1711717890588,-155.0,0.0006,120]
[320940086,1711717890597,-10000.0,0.0006,4]
[320940087,1711717890606,-1035.70392563,0.0006,90]
[320940088,1711717890615,-997.88848774,0.0006,7]
[320940089,1711717890625,-160.87430637,0.0006,60]
[320940090,1711717890635,-159.41557308,0.0006,120]
[320940091,1711717890644,-102715.21968018,0.0006,14]
[320940092,1711717890654,-1513.99498218,0.0006,120]
[320940093,1711717890665,-15980.95475721,0.0006,120]
[320940094,1711717890675,-5307.41597724,0.0006,14]
[320940095,1711717890687,-7052.20586999,0.0006,30]
[320940096,1711717890697,-999.999999,0.0006,30]
[320940097,1711717890707,-1500.2057501,0.0006,120]
[320940098,1711717890717,-910373.62499085,0.0006,60]
[320940099,1711717890726,-300270.57636717,0.0006,120]
[320940100,1711717890735,-1543.70534365,0.0006,120]
[320940101,1711717890744,-400.0,0.0006,7]
[320940102,1711717890754,-522.54570528,0.0006,30]
[320940103,1711717890764,-797.45270005,0.0006,120]
[320940104,1711717890773,-4228.9687519,0.0006,120]
[320940105,1711717890782,-1001.13171766,0.0006,80]
[320940106,1711717890791,-151.0,0.0006,120]
[320940107,1711717890800,-155.225279,0.0006,120]
[320940108,1711717890809,-151.0,0.0006,120]
[320940109,1711717890818,-198.543438,0.0006,120]
[320940110,1711717890828,-151.0,0.0006,120]
[320940111,1711717890838,-14392.33823447,0.0006,80]
[320940112,1711717890847,-151.0,0.0006,120]
[320940113,1711717890856,-233.84952,0.0006,120]
[320940114,1711717890865,-213.769302,0.0006,120]
[320940115,1711717890874,-151.0,0.0006,120]
[320940116,1711717890883,-203.102584,0.0006,120]
[320940117,1711717890892,-151.0,0.0006,120]
[320940118,1711717890902,-151.0,0.0006,120]
[320940119,1711717890911,-151.0,0.0006,120]
[320940120,1711717890921,-196.915904,0.0006,30]
[320940121,1711717890930,-151.0,0.0006,120]
[320940122,1711717890940,-159.073832,0.0006,120]
[320940123,1711717890949,-151.0,0.0006,120]
[320940124,1711717890959,-151.0,0.0006,30]
[320940125,1711717890968,-151.0,0.0006,30]
[320940126,1711717890977,-10923.98,0.0006,120]
[320940127,1711717890986,-2223.62731424,0.00060016,120]
[320940128,1711717890995,-1392.62580325,0.00060016,120]
[320940129,1711717891005,-566.66777425,0.00060016,120]
[320940130,1711717891014,-1318.19005954,0.00060016,120]
[320940131,1711717891024,-258.4,0.00060055,120]
[320940132,1711717891034,-151.0,0.00060082,120]
[320940133,1711717891043,-666.0,0.00060273,120]
[320940134,1711717891052,-3031.91,0.00060274,120]
[320940135,1711717891060,-1980.0,0.00060274,120]
[320940136,1711717891069,-10000.0,0.00060274,120]
[320940137,1711717891078,-286.45247,0.00060274,120]
[320940138,1711717891089,-257.050314,0.00060274,120]
[320940139,1711717891099,-1858.6259231,0.000603,120]
[320940140,1711717891108,-1579.25,0.00060321,10]
[320940141,1711717891118,-1600.17,0.00060358,6]
[320940142,1711717891128,-1600.17,0.00060358,6]
[320940143,1711717891137,-999.6,0.000604,120]
[320940144,1711717891146,-800.0,0.00060401,120]
[320940145,1711717891155,-2223.62731424,0.00060515,120]
[320940146,1711717891165,-1392.62580325,0.00060515,120]
[320940147,1711717891175,-566.66777425,0.00060515,120]
[320940148,1711717891185,-1318.19005954,0.00060515,120]
[320940149,1711717891194,-258.4,0.00060658,120]
[320940150,1711717891204,-999.6,0.000607,120]
[320940151,1711717891213,-1228.11,0.00060821,120]
[320940152,1711717891223,-200.0,0.00060892,30]
[320940153,1711717891233,-1103.8,0.0006096,6]
[320940154,1711717891242,-1103.8,0.0006096,6]
[320940155,1711717891251,-215.61,0.0006096,6]
[320940156,1711717891261,-200.0,0.00060987,3]
[320940157,1711717891271,-322.0,0.00061,115]
[320940158,1711717891281,-159.92,0.00061001,10]
[320940159,1711717891290,-2223.62731424,0.00061014,120]
[320940160,1711717891300,-1392.62580325,0.00061014,120]
[320940161,1711717891310,-566.66777425,0.00061014,120]
[320940162,1711717891319,-2000.0,0.00061107,10]
[320940163,1711717891329,-500.0,0.00061115,120]
[320940164,1711717891339,-500.0,0.00061119,90]
[320940165,1711717891348,-305.56,0.000612,120]
[320940166,1711717891358,-258.4,0.0006126,120]
[320940167,1711717891367,-151.0,0.00061342,120]
[320940168,1711717891377,-500.0,0.00061393,90]
[320940169,1711717891386,-322.0,0.000615,116]
[320940170,1711717891395,-2223.62731424,0.00061512,120]
[320940171,1711717891405,-1392.62580325,0.00061512,120]
[320940172,1711717891415,-566.66777425,0.00061512,120]
[320940173,1711717891424,-1056.47,0.00061543,2]
[320940174,1711717891434,-7204.61,0.00061563,6]
[320940175,1711717891443,-7204.61,0.00061563,6]
[320940176,1711717891453,-1228.11,0.00061643,120]
[320940177,1711717891462,-300.0,0.000617,120]
[320940178,1711717891472,-999.6,0.000617,120]
[320940179,1711717891481,-258.4,0.00061863,120]
[320940180,1711717891491,-500.0,0.00061941,90]
[320940181,1711717891501,-200.0,0.00061987,3]
[320940182,1711717891510,-1392.0522324,0.00062,120]
[320940183,1711717891520,-322.0,0.00062,117]
[320940184,1711717891529,-999.6,0.00062,120]
[320940185,1711717891539,-2223.62731424,0.00062011,120]
[320940186,1711717891549,-1392.62580325,0.00062011,120]
[320940187,1711717891559,-566.66777425,0.00062011,120]
[320940188,1711717891570,-13837.05,0.00062165,6]
[320940189,1711717891580,-14097.02,0.00062165,6]
[320940190,1711717891591,-12000.0,0.00062301,8]
[320940191,1711717891601,-209.0,0.0006235,30]
[320940192,1711717891610,-1228.11,0.00062465,120]
[320940193,1711717891620,-258.4,0.00062466,120]
[320940194,1711717891630,-500.0,0.00062489,90]
[320940195,1711717891731,-322.0,0.000625,118]
[320940196,1711717891741,-2223.62731424,0.0006251,120]
[320940197,1711717891751,-1392.62580325,0.0006251,120]
[320940198,1711717891762,-566.66777425,0.0006251,120]
[320940199,1711717891771,-151.0,0.00062603,120]
[320940200,1711717891781,-305.56,0.0006266,120]
[320940201,1711717891790,-347.77,0.00062685,120]
[320940202,1711717891799,-300.0,0.000627,120]
[320940203,1711717891808,-500.0,0.00062759,36]
[320940204,1711717891817,-1938.89,0.00062768,6]
[320940205,1711717891827,-1938.89,0.00062768,6]
[320940206,1711717891837,-200.0,0.00062987,3]
[320940207,1711717891845,-322.0,0.00063,119]
[320940208,1711717891854,-999.6,0.00063,120]
[320940209,1711717891864,-2223.62731424,0.00063009,120]
[320940210,1711717891873,-1392.62580325,0.00063009,120]
[320940211,1711717891882,-566.66777425,0.00063009,120]
[320940212,1711717891891,-151.0,0.00063013,120]
[320940213,1711717891900,-151.0,0.00063013,120]
[320940214,1711717891910,-151.0,0.00063013,120]
[320940215,1711717891919,-151.0,0.00063013,120]
[320940216,1711717891928,-1256.8,0.00063013,120]
[320940217,1711717891937,-1256.8,0.00063013,120]
[320940218,1711717891946,-1256.8,0.00063013,120]
[320940219,1711717891955,-1256.8,0.00063013,120]
[320940220,1711717891964,-1256.8,0.00063013,120]
[320940221,1711717891973,-1256.8,0.00063013,120]
[320940222,1711717891982,-1256.8,0.00063013,120]
[320940223,1711717891992,-1256.8,0.00063013,120]
[320940224,1711717892001,-1256.8,0.00063013,120]
[320940225,1711717892010,-1256.8,0.00063013,120]
[320940226,1711717892019,-1256.8,0.00063013,120]
[320940227,1711717892028,-1256.8,0.00063013,120]
[320940228,1711717892038,-1256.8,0.00063013,120]
[320940229,1711717892047,-1256.8,0.00063013,120]
[320940230,1711717892056,-1256.8,0.00063013,120]
[320940231,1711717892065,-1256.8,0.00063013,120]
[320940232,1711717892074,-1256.8,0.00063013,120]
[320940233,1711717892084,-1256.8,0.00063013,120]
[320940234,1711717892094,-1256.8,0.00063013,120]
[320940235,1711717892103,-1256.8,0.00063013,120]
[320940236,1711717892113,-1256.8,0.00063013,120]
[320940237,1711717892122,-1256.8,0.00063013,120]
[320940238,1711717892132,-1256.8,0.00063013,120]
[320940239,1711717892142,-1256.95770746,0.00063013,120]
[320940240,1711717892151,-500.0,0.00063037,90]
[320940241,1711717892161,-258.4,0.00063068,120]
[320940242,1711717892171,-1228.11,0.00063287,120]